{"text_format":"3","workbook":"xlsx","n_sheets":3,"sheets":["Liste over studerende","Klasseliste","Oplysninger om studerende"],"not_rendered":{"images":2,"defined_names":8},"read":"whole","date_system":"1900"}

{"sheet":"Liste over studerende","index":0,"n_rows":8,"n_cols":13,"rows_kept":8,"merged":[[1,2,2,3],[1,4,1,11],[2,4,2,11],[6,12,8,16]]}
[]
[null,null,"Liste over studerende",null,"GÅ TIL KLASSELISTE"]
[{"$nulls":4},"GÅ TIL OPLYSNINGER OM STUDERENDE"]
[null,null,"DEN STUDERENDES NAVN","MAIL","TELEFON, PRIVAT","MOBILTELEFON","Fødselsdato","LISTE OVER NØDKONTAKTER","NØDTELEFONNUMMER","LÆGE","LÆGENS TELEFONNUMMER","  "]
[null,null,"Navn 1","Mailadresse","Telefon, privat","Mobiltelefon","Dato","Kontakt 1","Nødtelefonnummer","Læge 1","Lægens telefonnummer"]
[null,null,"Navn 2","Mailadresse","Telefon, privat","Mobiltelefon","Dato","Kontakt 2","Nødtelefonnummer","Læge 2","Lægens telefonnummer"]
[null,null,"Navn 3","Mailadresse","Telefon, privat","Mobiltelefon","Dato","Kontakt 3","Nødtelefonnummer","Læge 3","Lægens telefonnummer",null,"Tip:Hvis du vil tilføje flere studerende, skal du i den sidste celle i tabellen trykke på Tab-tasten."]
[null,null,"Navn 4","Mailadresse","Telefon, privat","Mobiltelefon","Dato","Kontakt 4","Nødtelefonnummer","Læge 4","Lægens telefonnummer"]

{"sheet":"Klasseliste","index":1,"n_rows":12,"n_cols":7,"rows_kept":12,"merged":[[1,2,2,2],[1,3,2,3],[1,4,1,6],[2,4,2,6]]}
[]
[null,null,"Klasseliste","Institut for grafisk design","GÅ TIL LISTE OVER STUDERENDE"]
[{"$nulls":4},"GÅ TIL OPLYSNINGER OM STUDERENDE"]
[null,null,"KURSUS","Kursusnavn","STARTDATO","Dato"]
[null,null,"UNDERVISER","Vejleder 1","SLUTDATO","Dato"]
[null,null,"ANTAL TILMELDTE",{"$f":"COUNTA(FortegnelseOverStuderende[DEN STUDERENDES NAVN])","v":4}]
[]
[null,null,"DEN STUDERENDES NAVN","MAIL","TELEFON, PRIVAT","MOBILTELEFON","  "]
[null,null,"Navn 1",{"$f":"IFERROR(VLOOKUP(FortegnelseOverStuderende[[#This Row],[DEN STUDERENDES NAVN]],Studerende[],2),\"\")","v":"Mailadresse"},{"$f":"IFERROR(VLOOKUP(FortegnelseOverStuderende[[#This Row],[DEN STUDERENDES NAVN]],Studerende[],3),\"\")","v":"Telefon, privat"},{"$f":"IFERROR(VLOOKUP(FortegnelseOverStuderende[[#This Row],[DEN STUDERENDES NAVN]],Studerende[],4),\"\")","v":"Mobiltelefon"}]
[null,null,"Navn 2",{"$f":"IFERROR(VLOOKUP(FortegnelseOverStuderende[[#This Row],[DEN STUDERENDES NAVN]],Studerende[],2),\"\")","v":"Mailadresse"},{"$f":"IFERROR(VLOOKUP(FortegnelseOverStuderende[[#This Row],[DEN STUDERENDES NAVN]],Studerende[],3),\"\")","v":"Telefon, privat"},{"$f":"IFERROR(VLOOKUP(FortegnelseOverStuderende[[#This Row],[DEN STUDERENDES NAVN]],Studerende[],4),\"\")","v":"Mobiltelefon"}]
[null,null,"Navn 3",{"$f":"IFERROR(VLOOKUP(FortegnelseOverStuderende[[#This Row],[DEN STUDERENDES NAVN]],Studerende[],2),\"\")","v":"Mailadresse"},{"$f":"IFERROR(VLOOKUP(FortegnelseOverStuderende[[#This Row],[DEN STUDERENDES NAVN]],Studerende[],3),\"\")","v":"Telefon, privat"},{"$f":"IFERROR(VLOOKUP(FortegnelseOverStuderende[[#This Row],[DEN STUDERENDES NAVN]],Studerende[],4),\"\")","v":"Mobiltelefon"}]
[null,null,"Navn 4",{"$f":"IFERROR(VLOOKUP(FortegnelseOverStuderende[[#This Row],[DEN STUDERENDES NAVN]],Studerende[],2),\"\")","v":"Mailadresse"},{"$f":"IFERROR(VLOOKUP(FortegnelseOverStuderende[[#This Row],[DEN STUDERENDES NAVN]],Studerende[],3),\"\")","v":"Telefon, privat"},{"$f":"IFERROR(VLOOKUP(FortegnelseOverStuderende[[#This Row],[DEN STUDERENDES NAVN]],Studerende[],4),\"\")","v":"Mobiltelefon"}]

{"sheet":"Oplysninger om studerende","index":2,"n_rows":13,"n_cols":4,"rows_kept":13,"merged":[[1,2,2,2],[1,3,1,4],[2,3,2,4],[3,2,3,3]]}
[]
[null,null,"Oplysninger om studerende","GÅ TIL LISTE OVER STUDERENDE"]
[{"$nulls":3},"GÅ TIL KLASSELISTE"]
[null,null,"TIP: VÆLG EN STUDERENDE FRA RULLELISTEN I CELLE D5 FOR AT OPDATERE OPLYSNINGERNE OM STUDERENDE"]
[null,null,"DEN STUDERENDES NAVN","Navn 1"]
[null,null,"MAIL",{"$f":"IFERROR(VLOOKUP(StuderendesNavn,Studerende[],2,FALSE),\"\")","v":"Mailadresse"}]
[null,null,"TELEFON, PRIVAT",{"$f":"IFERROR(VLOOKUP(StuderendesNavn,Studerende[],3,FALSE),\"\")","v":"Telefon, privat"}]
[null,null,"MOBILTELEFON",{"$f":"IFERROR(VLOOKUP(StuderendesNavn,Studerende[],4,FALSE),\"\")","v":"Mobiltelefon"}]
[null,null,"Fødselsdato",{"$f":"IFERROR(VLOOKUP(StuderendesNavn,Studerende[],5,FALSE),\"\")","v":"Dato"}]
[null,null,"LISTE OVER NØDKONTAKTER",{"$f":"IFERROR(VLOOKUP(StuderendesNavn,Studerende[],6,FALSE),\"\")","v":"Kontakt 1"}]
[null,null,"NØDTELEFONNUMMER",{"$f":"IFERROR(VLOOKUP(StuderendesNavn,Studerende[],7,FALSE),\"\")","v":"Nødtelefonnummer"}]
[null,null,"LÆGE",{"$f":"IFERROR(VLOOKUP(StuderendesNavn,Studerende[],8,FALSE),\"\")","v":"Læge 1"}]
[null,null,"LÆGENS TELEFONNUMMER",{"$f":"IFERROR(VLOOKUP(StuderendesNavn,Studerende[],9,FALSE),\"\")","v":"Lægens telefonnummer"}]